[Event "Przeworsk GM norm 2022"]
[Site "Przeworsk"]
[Date "2022.05.31"]
[Round "2.2"]
[White "Fus, Jakub"]
[Black "Mikrut, Dariusz"]
[Result "1-0"]
[ECO "E84"]
[WhiteElo "2378"]
[BlackElo "2361"]
[Annotator "TA"]
[PlyCount "95"]
[EventDate "2022.05.30"]
[EventType "tourn"]
[EventCountry "POL"]
[SourceTitle "playchess.com"]
[Source "ChessBase"]
[SourceQuality "1"]
[TimeControl "40/5400+30:1800+30"]

{[%evp 17,95,44,54,32,51,60,54,39,31,0,7,0,0,-22,0,-7,0,-7,16,17,15,5,18,9,10,16,20,20,36,37,37,35,37,34,35,36,41,41,64,33,129,92,133,41,209,225,222,187,169,170,188,180,673,635,777,777,1166,1062,12830,12830,6544,2023,2689,2172,12834,12834,12839,12839,12839,12838,12839,9616,12834,10661,12833,6211,12843,12844,12844,12845]} 1. d4 {[%emt 0:00:04] Edouard,Romain} Nf6 {[%emt 0:00:20]} 2. c4 {[%emt 0:00:17]} g6 {[%emt 0:00:08]} 3. Nc3 {[%emt 0:00:18]} Bg7 {[%emt 0:00:06]} 4. e4 {[%emt 0:00:19]} d6 {[%emt 0:00:05]} 5. f3 {[%emt 0:00:10]} O-O {[%emt 0:00:24]} 6. Be3 {[%emt 0:00:08]} Nc6 {[%emt 0:00:08]} 7. Nge2 {[%emt 0:01:03]} a6 {[%emt 0:01:42]} 8. Qd2 {[%emt 0:00:09]} Rb8 {[%emt 0:00:39][%cal Ba8b8,Bb8b7,Bb7b2][%mdl 32]} 9. Rc1 {[%emt 0:00:43]} Bd7 {[%emt 0:02:10]} 10. Nd1 {[%emt 0:00:19] E84: King's Indian: Sämisch Panno: 7 Nge2 a6 8 Qd2 Rb8.} e6 {[%emt 0:07:26]} 11. Nf2 {[%emt 0:02:59]} b5 {[%emt 0:03:46] [#]} 12. b3 $146 {[%emt 0:04:28] White is slightly better.} ({Predecessor:} 12. c5 Re8 13. Nd3 b4 14. g3 a5 15. Bg2 Ne7 16. O-O Bb5 17. Rfd1 Nd7 18. b3 {1-0 (44) Edouard,R (2653)-Hunt,A (2429) England 2014 CBM 159 [Edouard,Romain]}) 12... bxc4 {[%emt 0:00:52]} 13. bxc4 {[%emt 0:00:15]} Rb7 {[%emt 0:03:48]} 14. g3 {[%emt 0:09:40]} Qb8 {[%emt 0:00:23]} 15. Bg2 {[%emt 0:00:46]} Rb2 {[%emt 0:00:43]} 16. Rc2 {[%emt 0:01:53]} Rb1+ {[%emt 0:05:16]} 17. Nc1 {[%emt 0:01:35]} e5 {[%emt 0:00:48]} 18. d5 {[%emt 0:00:16]} Nd4 {[%emt 0:00:13]} 19. Bxd4 {[%emt 0:00:09]} exd4 {[%emt 0:00:05]} 20. O-O {[%emt 0:02:35]} Ba4 {[%emt 0:05:00]} 21. Nb3 $1 {[%emt 0:00:21]} Rxf1+ {[%emt 0:01:38]} 22. Bxf1 {[%emt 0:00:06]} Bxb3 {[%emt 0:01:48] This bishop pair is nice.} 23. Rb2 {[%emt 0:00:40][%mdl 64] Pin} Nd7 {[%emt 0:00:23][%cal Od7e5]} 24. Rxb3 {[%emt 0:02:38]} Qa7 {[%emt 0:00:58]} 25. Nd3 {[%emt 0:02:03]} Rb8 {[%emt 0:04:12]} 26. Qa5 {[%emt 0:05:47]} Rxb3 {[%emt 0:08:14]} 27. axb3 {[%emt 0:00:18]} Qb6 {[%emt 0:00:12]} 28. b4 {[%emt 0:06:12]} (28. Qa4 $5 {[%cal Ra4d7]} Nf6 29. f4 $16) 28... Ne5 {[%emt 0:19:08]} (28... Qxa5 $14 29. bxa5 Bh6) 29. Nxe5 {[%emt 0:01:02]} Bxe5 $16 {[%emt 0:00:52][%mdl 4096] Endgame KQB-KQB} 30. f4 {[%emt 0:05:43]} ({Better is} 30. Qxb6 $16 {Qb8+ is the strong threat.} cxb6 31. c5 dxc5 32. bxc5) 30... Bf6 $2 {[%emt 0:00:11] Loses the game.} (30... Qxa5 $14 31. bxa5 Bf6) 31. Qxb6 $18 {[%emt 0:04:30]} cxb6 {[%emt 0:00:09] KB-KB} 32. c5 $1 {[%emt 0:00:40]} bxc5 {[%emt 0:16:31]} 33. bxc5 {[%emt 0:00:10]} dxc5 {[%emt 0:00:29] [#]} 34. e5 $1 {[%emt 0:00:08]} ({Don't take} 34. Bxa6 $6 d3 $16) 34... Bg7 {[%emt 0:01:58] [#]} (34... Bd8 35. Bxa6 Kf8) 35. d6 $1 {[%emt 0:00:07] White is clearly winning.} Kf8 {[%emt 0:00:48]} 36. Bxa6 {[%emt 0:00:06]} g5 {[%emt 0:03:09]} 37. Kf2 {[%emt 0:00:18]} gxf4 {[%emt 0:02:57]} 38. gxf4 {[%emt 0:00:04]} Ke8 {[%emt 0:06:18]} 39. Kf3 {[%emt 0:00:18]} (39. Bb5+ $142 Kd8 40. Kf3) 39... Kd8 {[%emt 0:04:19]} 40. Bd3 {[%emt 0:00:00]} h5 {[%emt 0:00:00]} 41. h4 {[%emt 0:03:01]} Bh6 {[%emt 0:01:42]} 42. Ke4 {[%emt 0:00:12]} Kd7 {[%emt 0:00:51]} 43. Bb5+ {[%emt 0:00:06]} Kd8 {[%emt 0:00:25]} 44. Bc4 {[%emt 0:00:05]} Ke8 {[%emt 0:00:21]} 45. Be2 {[%emt 0:00:05]} Kd7 {[%emt 0:00:14]} 46. Bxh5 {[%emt 0:02:09]} f6 {[%emt 0:00:20]} 47. Kd5 {[%emt 0:01:12] Intending e6+ and mate.} fxe5 {[%emt 0:00:12]} 48. fxe5 {[%emt 0:00:04] Weighted Error Value: White=0.13 (very precise) /Black=0.58} 1-0

[Event "Przeworsk GM norm 2022"]
[Site "Przeworsk"]
[Date "2022.05.31"]
[Round "2.3"]
[White "Omelja, Artem"]
[Black "Baum, Jonasz"]
[Result "1/2-1/2"]
[ECO "E54"]
[WhiteElo "2515"]
[BlackElo "2409"]
[Annotator "TA"]
[PlyCount "126"]
[EventDate "2022.05.30"]
[EventType "tourn"]
[EventCountry "POL"]
[SourceTitle "playchess.com"]
[Source "ChessBase"]
[SourceQuality "1"]
[TimeControl "40/5400+30:1800+30"]

{[%evp 18,126,11,0,30,0,0,0,12,0,0,0,-5,-20,-19,-40,0,0,0,0,0,0,0,4,16,0,0,0,0,0,0,0,0,-16,-22,-18,-2,-1,-8,-5,0,0,34,34,35,45,45,17,21,16,18,11,11,18,17,7,7,8,14,8,12,11,91,0,43,43,65,65,65,65,65,65,65,16,40,16,16,16,16,0,8,-67,-67,-85,-85,-91,-98,-83,-91,-121,-109,-133,-142,-82,-89,-113,-32,-32,0,0,0,0,0,0,0,0,0,0,0,0,0]} 1. d4 {[%emt 0:00:04]} Nf6 {[%emt 0:00:07]} 2. c4 {[%emt 0:00:07]} e6 {[%emt 0:00:05]} 3. Nf3 {[%emt 0:00:09]} d5 {[%emt 0:00:09]} 4. Nc3 {[%emt 0:00:17]} Bb4 {[%emt 0:00:12]} 5. e3 {[%emt 0:00:55]} O-O {[%emt 0:01:29]} 6. Bd3 {[%emt 0:00:23]} dxc4 {[%emt 0:00:41]} 7. Bxc4 {[%emt 0:00:08]} c5 {[%emt 0:00:07]} 8. O-O {[%emt 0:00:11]} Nc6 {[%emt 0:00:14]} 9. a3 {[%emt 0:01:48]} Ba5 {[%emt 0:00:12]} 10. Ba2 {[%emt 0:02:57]} Qe7 {[%emt 0:17:02] E56: Nimzo-Indian: Rubinstein: Main Line: 7...Nc6.} 11. Qe2 {[%emt 0:02:20]} (11. Qc2 $5 {[%cal Rd4c5]}) 11... Rd8 {[%emt 0:04:57][%cal Rc5d4]} 12. Rd1 {[%emt 0:00:18] [#]} Bc7 $146 {[%emt 0:01:11]} ({Predecessor:} 12... b6 13. Bd2 cxd4 14. exd4 Bxc3 15. bxc3 Bb7 16. Bg5 Rac8 17. Ne5 h6 18. Bh4 g5 19. Bg3 Nxe5 20. Bxe5 Rxc3 21. h4 Nd5 22. Bxd5 Rxd5 23. Rac1 Rc6 {½-½ (23) Aleksandrov,A (2574)-Dubov,D (2703) Skopje 2019}) 13. h3 {[%emt 0:02:28]} h6 {[%emt 0:04:26]} 14. Qc4 {[%emt 0:08:33]} b6 {[%emt 0:11:46]} 15. dxc5 {[%emt 0:01:00]} (15. Bd2 {is interesting.} Bb7 16. Nb5 Bb8 17. dxc5 bxc5 18. Be1) 15... Rxd1+ {[%emt 0:01:53]} 16. Nxd1 {[%emt 0:00:09]} Qxc5 {[%emt 0:14:29]} 17. Qxc5 {[%emt 0:00:28]} bxc5 {[%emt 0:00:02]} 18. Bd2 {[%emt 0:00:28]} Bb7 {[%emt 0:01:24]} 19. Rc1 {[%emt 0:01:55]} Ne4 {[%emt 0:07:09]} 20. Be1 {[%emt 0:01:09]} Rd8 {[%emt 0:00:54]} 21. Bb1 {[%emt 0:01:23]} Ne5 {[%emt 0:02:00]} 22. Nxe5 {[%emt 0:05:35]} Bxe5 {[%emt 0:01:25]} 23. Ba5 {[%emt 0:10:06]} Rd7 {[%emt 0:00:45]} 24. Bc2 {[%emt 0:01:43]} c4 {[%emt 0:02:42]} 25. Ba4 {[%emt 0:04:23]} Rd5 {[%emt 0:00:59]} 26. Bc3 {[%emt 0:05:56]} Bb8 {[%emt 0:06:33]} 27. f3 {[%emt 0:02:23]} Nc5 {[%emt 0:04:58]} 28. Bc2 {[%emt 0:01:35]} Bg3 {[%emt 0:07:51]} 29. Nf2 {[%emt 0:01:19]} Bxf2+ {[%emt 0:02:51]} 30. Kxf2 {[%emt 0:00:10]} Nd3+ {[%emt 0:00:02]} 31. Bxd3 {[%emt 0:01:30]} Rxd3 $14 {[%emt 0:00:42][%mdl 4096] Endgame KRB-KRB} 32. Rc2 {[%emt 0:02:28]} Rd7 {[%emt 0:00:17]} 33. e4 {[%emt 0:06:48]} f6 {[%emt 0:00:31]} 34. Ke1 {[%emt 0:04:01]} Kf7 {[%emt 0:00:14]} 35. Bd2 {[%emt 0:00:35]} Ba6 {[%emt 0:00:20]} 36. a4 {[%emt 0:01:04]} e5 {[%emt 0:03:17]} 37. Be3 {[%emt 0:00:20]} Ke6 {[%emt 0:01:52]} 38. h4 {[%emt 0:00:37]} Rc7 {[%emt 0:01:59]} 39. Kd2 {[%emt 0:09:31]} h5 {[%emt 0:00:34]} (39... Rb7 $11 {remains equal.}) 40. Rc3 {[%emt 0:00:00]} ({White should try} 40. b4 $1 $16) 40... g6 {[%emt 0:00:00]} 41. b4 {[%emt 0:07:42][%cal Bb2b4,Bb4b5,Bb5b6][%mdl 32]} Bc8 {[%emt 0:06:33]} 42. b5 {[%emt 0:02:23]} a6 {[%emt 0:02:48]} 43. b6 {[%emt 0:02:17]} Rc6 {[%emt 0:00:23]} 44. a5 {[%emt 0:01:20] White is more active.} Bb7 {[%emt 0:00:29]} 45. Kc2 {[%emt 0:03:03]} (45. Rc2 $14 {might be stronger.}) 45... Rc8 {[%emt 0:00:39]} 46. Kb2 {[%emt 0:00:10]} f5 $1 {[%emt 0:02:50]} 47. exf5+ {[%emt 0:00:12]} gxf5 {[%emt 0:00:48]} 48. Ka3 {[%emt 0:01:03]} f4 {[%emt 0:01:39]} 49. Bc1 {[%emt 0:02:05]} ({Better is} 49. Bg1 $1 $11) 49... Rc5 $15 {[%emt 0:01:45]} 50. Kb4 {[%emt 0:00:27]} Kd5 {[%emt 0:01:20]} 51. Ra3 {[%emt 0:00:28]} Rb5+ {[%emt 0:00:43]} 52. Kc3 {[%emt 0:00:10] [#]} Bc8 $1 {[%emt 0:03:33]} 53. Ra2 {[%emt 0:02:48]} Rb3+ {[%emt 0:00:54]} 54. Kc2 {[%emt 0:00:14]} Bf5+ {[%emt 0:00:44]} 55. Kd1 {[%emt 0:00:19] [#]} Rb1 {[%emt 0:04:59] aiming for ...c3.} 56. g3 {[%emt 0:05:05]} ({Don't blunder} 56. Rb2 $2 c3 57. Re2 Kd4 $19) 56... Kd4 {[%emt 0:02:24]} (56... fxg3 $17 {White must now prevent ...e4.} 57. Rd2+ Bd3) 57. gxf4 {[%emt 0:02:21]} exf4 {[%emt 0:00:03] And now ...c3 would win.} (57... c3 $5 58. Re2 e4 59. fxe4 Bxe4 $15) 58. Re2 {[%emt 0:05:47] The position is equal.} ({Wrong is} 58. Rb2 $2 c3 59. Rc2 Kd3 $19) 58... c3 {[%emt 0:01:46] Threatens to win with ...Kd3.} 59. Re8 $1 {[%emt 0:01:17]} Kd3 {[%emt 0:03:03]} 60. Rd8+ $1 {[%emt 0:00:14]} Kc4 {[%emt 0:00:03]} 61. Rf8 {[%emt 0:01:33]} Kd3 {[%emt 0:00:54] ( -> ...c2+)} 62. Rd8+ $1 {[%emt 0:00:35]} Kc4 {[%emt 0:00:01]} 63. Rf8 {[%emt 0:00:39]} Kd3 {[%emt 0:01:32] Weighted Error Value: White=0.09 (flawless) /Black=0.11 (very precise)} 1/2-1/2

[Event "Przeworsk GM norm 2022"]
[Site "Przeworsk"]
[Date "2022.05.31"]
[Round "2.4"]
[White "Mis, Mieszko"]
[Black "Licznerski, Lukasz"]
[Result "1-0"]
[ECO "B10"]
[WhiteElo "2388"]
[BlackElo "2439"]
[Annotator "TA"]
[PlyCount "82"]
[EventDate "2022.05.30"]
[EventType "tourn"]
[EventCountry "POL"]
[SourceTitle "playchess.com"]
[Source "ChessBase"]
[SourceQuality "1"]
[TimeControl "40/5400+30:1800+30"]

{[%evp 9,82,13,23,21,27,4,8,8,8,4,37,0,-2,-44,-47,-50,64,64,156,157,170,184,397,382,359,352,452,301,313,341,336,314,298,271,263,180,147,160,302,295,457,478,463,483,472,484,489,475,476,469,457,449,616,616,625,613,594,589,884,900,829,883,883,878,877,842,851,802,977,839,1316,777,1628,1577,1153]} 1. e4 {[%emt 0:00:05]} c6 {[%emt 0:04:56]} 2. Nf3 {[%emt 0:00:13]} d5 {[%emt 0:00:02]} 3. d3 {[%emt 0:00:05]} Bg4 {[%emt 0:03:31]} 4. h3 {[%emt 0:00:10]} Bh5 {[%emt 0:01:44]} 5. Qe2 {[%emt 0:01:22]} e6 {[%emt 0:07:53]} 6. g4 {[%emt 0:00:50] B10: Caro-Kann: 2 d3 and 2 c4.} Bg6 {[%emt 0:00:50]} 7. h4 {[%emt 0:00:16]} h5 {[%emt 0:01:05]} 8. Ne5 {[%emt 0:01:43] The position is equal.} Bh7 {[%emt 0:01:35]} 9. g5 {[%emt 0:00:15]} (9. Qf3 $2 f6 10. g5 fxe5 $19) 9... dxe4 {[%emt 0:07:35] [#] Threatens to win with ...Qa5+.} 10. Nxf7 $146 {[%emt 0:00:25][%mdl 64] Decoy} ({Predecessor:} 10. Nc3 exd3 11. cxd3 Nd7 12. g6 Bxg6 13. Nxg6 fxg6 14. Bh3 Bb4 15. Qe4 Bxc3+ 16. bxc3 {1-0 (34) Deac,B (2651)-Kobalia,M (2600) Chess.com INT 2021}) 10... Kxf7 {[%emt 0:02:27]} 11. Qxh5+ {[%emt 0:00:04]} g6 {[%emt 0:06:10]} 12. Qg4 {[%emt 0:00:18]} Qa5+ {[%emt 0:18:11]} (12... exd3 $1 $15 13. Qf4+ Ke8) 13. Nc3 $1 $14 {[%emt 0:10:35][%mdl 1024] White has compensation.} Bg7 {[%emt 0:09:36] Black is now going downhill.} (13... exd3 $14 14. Bxd3 Ne7) 14. Bd2 $16 {[%emt 0:08:16]} Qf5 {[%emt 0:03:46]} 15. Qg3 {[%emt 0:04:52]} Qe5 {[%emt 0:02:39] [#]} (15... Ne7) 16. Bf4 $1 $18 {[%emt 0:01:36]} Qa5 {[%emt 0:00:02]} 17. dxe4 {[%emt 0:00:17]} Ne7 {[%emt 0:03:31]} 18. O-O-O {[%emt 0:34:01]} (18. Bd6 Rd8 19. O-O-O Rxd6 20. Qxd6 (20. Rxd6 Ke8 $16) 20... Be5 $16) 18... Na6 {[%emt 0:08:27] Inhibits Bc7.} 19. Bxa6 {[%emt 0:08:27]} Qxa6 {[%emt 0:01:41]} 20. Be5 {[%emt 0:00:28]} Bxe5 {[%emt 0:03:38]} 21. Qxe5 {[%emt 0:00:04] Threatening mate with Rd7.} Rhd8 {[%emt 0:00:10] Against Rd7} 22. f4 {[%emt 0:17:17][%cal Of4f5] And now f5! would win.} Qb6 {[%emt 0:02:29]} 23. f5 $40 {[%emt 0:01:00][%mdl 128] White goes for the king. White is more active.} Qe3+ {[%emt 0:03:46]} (23... gxf5 $16 24. Qf6+ Ke8) 24. Kb1 {[%emt 0:00:02] The board is on fire.} exf5 {[%emt 0:03:03]} (24... gxf5 $142 25. Qf6+ Ke8) 25. Qf6+ {[%emt 0:00:34] White is clearly winning.} Ke8 {[%emt 0:00:01] Hoping for ...Rxd1+.} 26. Rde1 {[%emt 0:00:08]} Qd4 {[%emt 0:03:55]} 27. exf5 {[%emt 0:00:07][%csl Gf6][%cal Re1e7]} Qxf6 {[%emt 0:00:02]} 28. gxf6 {[%emt 0:00:05][%mdl 64] Pin} Rd7 {[%emt 0:00:03][%cal Oe8f7]} 29. fxg6 {[%emt 0:02:07]} ({And not} 29. fxe7 gxf5 30. h5 Rxe7 $11) (29. Rxe7+ Rxe7 30. fxe7 gxf5 $11) 29... Bxg6 {[%emt 0:00:03]} 30. h5 {[%emt 0:00:04]} ({Weaker is} 30. fxe7 Rxe7 31. Reg1 (31. h5 Bh7 $16) 31... Bh7 $16) 30... Bh7 {[%emt 0:01:31]} 31. Rhg1 {[%emt 0:00:33] Strongly threatening Rg7.} (31. fxe7 Rxe7 32. Reg1 Rd8 $16) 31... Kf7 {[%emt 0:00:33] [#]} 32. Rg7+ $1 {[%emt 0:04:41]} ({Less strong is} 32. Rxe7+ Rxe7 33. fxe7 Re8 $14) (32. fxe7 Re8 33. Ne4 (33. Rgf1+ Kg8 $16) 33... Bxe4 $16) 32... Kxf6 {[%emt 0:00:04]} 33. Rxh7 {[%emt 0:00:01]} Rad8 {[%emt 0:00:15]} 34. Ne4+ {[%emt 0:00:33]} Kf5 {[%emt 0:00:13]} 35. Rf7+ {[%emt 0:00:05]} Ke6 {[%emt 0:00:14]} 36. Ng5+ {[%emt 0:00:04]} Kd6 {[%emt 0:00:11]} 37. Re6+ {[%emt 0:01:00]} Kc5 {[%emt 0:00:17]} 38. b4+ {[%emt 0:00:03]} Kxb4 {[%emt 0:01:31]} 39. Rexe7 {[%emt 0:00:08]} Rxe7 {[%emt 0:00:18]} 40. Rxe7 {[%emt 0:00:00]} Rd5 {[%emt 0:00:00]} 41. Rxb7+ {[%emt 0:00:48]} Ka3 {[%emt 0:00:11] Weighted Error Value: White=0.13 (very precise) /Black=0.50} 1-0

[Event "Przeworsk GM norm 2022"]
[Site "Przeworsk"]
[Date "2022.05.31"]
[Round "2.5"]
[White "Neugebauer, Martin"]
[Black "Golubka, Petro"]
[Result "1-0"]
[ECO "B01"]
[WhiteElo "2505"]
[BlackElo "2380"]
[Annotator "TA"]
[PlyCount "97"]
[EventDate "2022.05.30"]
[EventType "tourn"]
[EventCountry "POL"]
[SourceTitle "playchess.com"]
[Source "ChessBase"]
[SourceQuality "1"]
[TimeControl "40/5400+30:1800+30"]

{[%evp 9,97,68,67,60,63,68,68,65,70,51,62,51,81,78,104,87,137,148,141,152,156,159,145,147,158,160,152,137,194,133,165,85,69,0,11,12,15,19,19,19,16,7,32,23,31,0,240,235,232,202,306,301,300,300,284,234,253,253,222,227,253,253,253,253,253,253,245,238,8,8,29963,29958,29972,29972,29972,29965,29965,29966,29969,29971,29964,29967,29968,29969,29986,29987,29987,29988,29988,29989]} 1. e4 {[%emt 0:00:07]} d5 {[%emt 0:04:45]} 2. exd5 {[%emt 0:00:31]} Qxd5 {[%emt 0:00:06]} 3. Nf3 {[%emt 0:01:23]} Bg4 {[%emt 0:03:47]} 4. Be2 {[%emt 0:00:43]} c6 {[%emt 0:00:42]} 5. O-O {[%emt 0:01:23]} Nf6 {[%emt 0:00:10]} 6. c4 {[%emt 0:01:15] B01: Scandinavian Defence.} Qd8 {[%emt 0:01:56]} 7. d4 {[%emt 0:01:08]} e6 {[%emt 0:00:05]} 8. Nc3 {[%emt 0:01:38] White is slightly better.} Be7 {[%emt 0:03:46]} 9. Be3 {[%emt 0:02:13]} O-O {[%emt 0:00:50]} 10. h3 {[%emt 0:01:36][%cal Bh2h3,Bh3h4][%mdl 32]} Bh5 {[%emt 0:14:31]} 11. g4 {[%emt 0:04:19]} Bg6 {[%emt 0:01:14][%cal Oc6c5]} 12. Ne5 $36 {[%emt 0:00:38][%mdl 2048] Keeping Black busy.} Nbd7 {[%emt 0:05:04]} (12... Nfd7 $142) 13. h4 $1 $16 {[%emt 0:07:59] [#] White is more active.} Nxe5 $146 {[%emt 0:02:51]} ({Predecessor:} 13... h6 14. Nxg6 fxg6 15. g5 hxg5 16. hxg5 Ne8 17. Bg4 Nc7 18. f4 c5 19. d5 Nb6 {0-1 (71) Zambor,N (2271)-Juhar,R (2173) Slovakia 2019}) 14. dxe5 {[%emt 0:00:23]} Ne4 {[%emt 0:00:06]} 15. Nxe4 {[%emt 0:01:44]} Bxe4 {[%emt 0:00:06]} 16. f3 {[%emt 0:01:30]} Qa5 {[%emt 0:02:42][%cal Oa5e5]} 17. fxe4 {[%emt 0:10:44] Black must now prevent Bf4.} Qxe5 {[%emt 0:01:54] And now ...Qg3+ would win.} 18. Qe1 {[%emt 0:14:38] Against Qg3+} Qxb2 {[%emt 0:01:15]} (18... Qxe4 $16 19. Bf3 Qxc4) 19. Bf3 {[%emt 0:13:18]} (19. Rb1 $18 Qxa2 20. Rxb7) 19... Bf6 {[%emt 0:03:52]} 20. Qg3 {[%emt 0:06:05]} (20. Rb1 $18 Qxa2 21. Rxb7) 20... Be5 {[%emt 0:03:11]} 21. Rab1 {[%emt 0:06:12]} ({Better is} 21. Qf2 $14 Qxf2+ 22. Kxf2) 21... Qxb1 $1 $11 {[%emt 0:17:01]} 22. Qxe5 {[%emt 0:00:05]} Qd3 {[%emt 0:00:05]} 23. Bd4 {[%emt 0:00:29][%csl Gd4][%cal Re5g7][%mdl 1024] White has compensation.} f6 {[%emt 0:00:11]} 24. Qxe6+ {[%emt 0:00:05]} Kh8 {[%emt 0:00:12]} 25. Ba1 {[%emt 0:03:36]} Qe3+ {[%emt 0:01:39]} 26. Kh1 {[%emt 0:02:12][%cal Og4g5] Hoping for g5!} Rad8 {[%emt 0:12:55]} 27. g5 {[%emt 0:03:02][%cal Bg4g5,Bg5f6][%mdl 32]} Qf4 {[%emt 0:00:35]} (27... Qd3 $1 $11 {and Black is okay.} 28. Bg2 fxg5 29. Rxf8+ Rxf8) 28. gxf6 $1 $18 {[%emt 0:00:24][%csl Ga1][%cal Rf6g7]} Qxh4+ {[%emt 0:03:38]} 29. Kg1 {[%emt 0:00:06][%csl Ga1][%cal Rf6g7]} gxf6 {[%emt 0:02:17]} (29... Rxf6 {might work better.} 30. Bxf6 Qxf6 31. Qxf6 gxf6) 30. Bg2 {[%emt 0:00:23][%cal Rf1f6] A strong pair of Bishops.} Kg7 {[%emt 0:00:06]} 31. Qe7+ {[%emt 0:01:48]} Kg6 {[%emt 0:00:14]} 32. e5 {[%emt 0:01:49][%cal Re5f6]} Rd2 {[%emt 0:01:49][%cal Oh4g5] Threatens to win with ...Qg5!} 33. Qxf8 {[%emt 0:11:43][%cal Rf1f6] Really sharp!} Rxg2+ {[%emt 0:00:38]} 34. Kxg2 {[%emt 0:00:02][%cal Rf1f6]} Qg4+ {[%emt 0:00:06]} 35. Kf2 $1 {[%emt 0:00:03]} Qf4+ {[%emt 0:00:08] [#]} 36. Ke2 $1 {[%emt 0:00:06]} Qxc4+ {[%emt 0:00:07] [#]} 37. Ke3 $1 {[%emt 0:00:11]} ({Less strong is} 37. Kf2 Qf4+ 38. Ke2 Qe4+ 39. Kd2 Qg2+ 40. Ke3 (40. Ke1 Qe4+ 41. Kd2 Qg2+ 42. Ke1 Qe4+ 43. Kd2 $16) 40... Qxf1 $16) 37... Qxf1 {[%emt 0:00:11]} 38. Qxf6+ {[%emt 0:00:53]} Qxf6 {[%emt 0:00:06]} 39. exf6 {[%emt 0:00:02][%mdl 4096] Endgame KB-KP} a5 $2 {[%emt 0:06:03][%mdl 8192] A mistake that costs the game.} (39... b5 $11) 40. Ke4 {[%emt 0:00:00] White mates.} a4 {[%emt 0:00:00]} 41. Ke5 {[%emt 0:03:13]} Kf7 {[%emt 0:02:55]} 42. Bd4 {[%emt 0:02:00]} a3 {[%emt 0:04:45]} 43. Kf5 {[%emt 0:01:37]} h6 {[%emt 0:07:19]} 44. Bc5 {[%emt 0:01:11]} h5 {[%emt 0:03:42]} 45. Be7 {[%emt 0:25:38]} b5 {[%emt 0:06:50]} 46. Kg5 {[%emt 0:00:05]} c5 {[%emt 0:03:03]} 47. Bxc5 {[%emt 0:00:28]} h4 {[%emt 0:00:06]} 48. Bxa3 {[%emt 0:00:09]} ({Inferior is} 48. Kxh4 Kxf6 49. Kh3 (49. Bxa3 b4 $11) 49... Ke5 $11) 48... h3 {[%emt 0:00:03]} 49. Bd6 {[%emt 0:00:08] Weighted Error Value: White=0.10 (very precise) /Black=0.33} 1-0